[Event "Live Chess"]
[Site "Chess.com"]
[Date "2024.06.02"]
[Round "-"]
[White "Thebigsqueeze"]
[Black "CheckThis4"]
[Result "0-1"]
[WhiteElo "2288"]
[BlackElo "2698"]
[TimeControl "300"]
[EndTime "17:31:23 PDT"]
[Termination "CheckThis4 won by resignation"]

1. d4 {[%clk 0:04:53.4]} 1... Nf6 {[%clk 0:04:56.5]} 2. c4 {[%clk 0:04:51.7]}
2... c5 {[%clk 0:04:54.1]} 3. Nf3 {[%clk 0:04:49.8]} 3... cxd4 {[%clk 0:04:47]}
4. Nxd4 {[%clk 0:04:48.4]} 4... e5 {[%clk 0:04:36.1]} 5. Nf3 {[%clk 0:04:46.7]}
5... Nc6 {[%clk 0:04:30.4]} 6. Nc3 {[%clk 0:04:44.8]} 6... e4 {[%clk 0:04:19.1]}
7. Nd4 {[%clk 0:04:42.6]} 7... Bc5 {[%clk 0:04:14.9]} 8. e3 {[%clk 0:04:38.5]}
8... O-O {[%clk 0:04:08.9]} 9. Be2 {[%clk 0:04:25.3]} 9... d5 {[%clk 0:04:01.6]}
10. O-O {[%clk 0:04:23.5]} 10... Bxd4 {[%clk 0:03:44]} 11. exd4 {[%clk
0:04:20.8]} 11... dxc4 {[%clk 0:03:43.6]} 12. Be3 {[%clk 0:04:15.9]} 12... Be6
{[%clk 0:03:37.3]} 13. Rc1 {[%clk 0:04:11]} 13... a6 {[%clk 0:03:30.7]} 14. Bg5
{[%clk 0:04:01.5]} 14... Qxd4 {[%clk 0:03:09.4]} 15. Bxf6 {[%clk 0:03:22.6]}
15... gxf6 {[%clk 0:02:52.4]} 16. Qc2 {[%clk 0:03:19.3]} 16... f5 {[%clk
0:02:50.1]} 17. Rcd1 {[%clk 0:03:12.4]} 17... Qe5 {[%clk 0:02:48.4]} 18. f4
{[%clk 0:02:56.6]} 18... Qc5+ {[%clk 0:02:45.5]} 19. Kh1 {[%clk 0:02:54.6]}
19... Rad8 {[%clk 0:02:44.2]} 20. Rxd8 {[%clk 0:02:43.4]} 20... Rxd8 {[%clk
0:02:42.2]} 21. Rd1 {[%clk 0:02:42.9]} 21... Rxd1+ {[%clk 0:02:39]} 22. Qxd1
{[%clk 0:02:41.7]} 22... Qd4 {[%clk 0:02:37.1]} 0-1

[Event "Live Chess"]
[Site "Chess.com"]
[Date "2024.06.02"]
[Round "-"]
[White "Duke_of_Bebington"]
[Black "Sir_Sigmund"]
[Result "0-1"]
[WhiteElo "1617"]
[BlackElo "1873"]
[TimeControl "300"]
[EndTime "17:31:35 PDT"]
[Termination "Sir_Sigmund won by resignation"]

1. e4 {[%clk 0:04:57.8]} 1... e6 {[%clk 0:04:57.7]} 2. d4 {[%clk 0:04:56]} 2...
d5 {[%clk 0:04:57.2]} 3. Nd2 {[%clk 0:04:55.6]} 3... dxe4 {[%clk 0:04:55.3]} 4.
Nxe4 {[%clk 0:04:54.2]} 4... Nf6 {[%clk 0:04:55.2]} 5. Nxf6+ {[%clk 0:04:52.7]}
5... Qxf6 {[%clk 0:04:55.1]} 6. Nf3 {[%clk 0:04:51.2]} 6... h6 {[%clk
0:04:54.8]} 7. Bd3 {[%clk 0:04:43.2]} 7... Bd7 {[%clk 0:04:53.7]} 8. O-O {[%clk
0:04:42.4]} 8... Bc6 {[%clk 0:04:52.8]} 9. Ne5 {[%clk 0:04:34.5]} 9... Bd6
{[%clk 0:04:47.3]} 10. Nxc6 {[%clk 0:04:31.6]} 10... Nxc6 {[%clk 0:04:46.7]} 11.
Be3 {[%clk 0:04:28.6]} 11... O-O-O {[%clk 0:04:39.8]} 12. a3 {[%clk 0:04:23.7]}
12... Nxd4 {[%clk 0:04:32.2]} 13. c3 {[%clk 0:04:07.1]} 13... Nf5 {[%clk
0:04:29.9]} 14. Bxf5 {[%clk 0:03:58.5]} 14... Bxh2+ {[%clk 0:04:26.7]} 15. Kxh2
{[%clk 0:03:57]} 15... Rxd1 {[%clk 0:04:26]} 16. Raxd1 {[%clk 0:03:54.4]} 16...
Qxf5 {[%clk 0:04:23.7]} 17. Bxa7 {[%clk 0:03:52.4]} 17... b6 {[%clk 0:04:19.2]}
18. Rd4 {[%clk 0:03:48.9]} 18... Kb7 {[%clk 0:04:14.2]} 19. Bxb6 {[%clk
0:03:38]} 19... Kxb6 {[%clk 0:04:11.2]} 20. Rb4+ {[%clk 0:03:32.4]} 20... Kc6
{[%clk 0:04:09.2]} 21. Rc4+ {[%clk 0:03:30.8]} 21... Kb7 {[%clk 0:04:08]} 22.
Rb4+ {[%clk 0:03:29.8]} 22... Kc8 {[%clk 0:04:06.7]} 23. Ra4 {[%clk 0:03:29.2]}
23... Qd5 {[%clk 0:03:58.9]} 24. Rd4 {[%clk 0:03:22.3]} 24... Qh5+ {[%clk
0:03:48.5]} 25. Kg1 {[%clk 0:03:20]} 25... Rd8 {[%clk 0:03:47.6]} 26. Rfd1
{[%clk 0:03:14.9]} 26... Rxd4 {[%clk 0:03:45.5]} 27. Rxd4 {[%clk 0:03:14]} 27...
c5 {[%clk 0:03:41.3]} 28. Rd2 {[%clk 0:03:08.8]} 28... Kc7 {[%clk 0:03:39.6]}
29. Kf1 {[%clk 0:03:08]} 29... Qe5 {[%clk 0:03:31.7]} 30. Re2 {[%clk 0:03:05]}
30... Qd5 {[%clk 0:03:28.7]} 0-1

[Event "Live Chess"]
[Site "Chess.com"]
[Date "2024.06.02"]
[Round "-"]
[White "Dhaydon19"]
[Black "booktrunk"]
[Result "1-0"]
[WhiteElo "2685"]
[BlackElo "1500"]
[TimeControl "300"]
[EndTime "17:31:41 PDT"]
[Termination "Dhaydon19 won by resignation"]

1. d4 {[%clk 0:04:58.4]} 1... b6 {[%clk 0:04:57.7]} 2. Nf3 {[%clk 0:04:56.4]}
2... Bb7 {[%clk 0:04:57.6]} 3. g3 {[%clk 0:04:55.9]} 3... e6 {[%clk 0:04:56.5]}
4. Bg2 {[%clk 0:04:55]} 4... h6 {[%clk 0:04:54.8]} 5. O-O {[%clk 0:04:54.5]}
5... Nf6 {[%clk 0:04:53.1]} 6. c4 {[%clk 0:04:54]} 6... Be7 {[%clk 0:04:50.5]}
7. Nc3 {[%clk 0:04:53.2]} 7... d6 {[%clk 0:04:48.4]} 8. d5 {[%clk 0:04:52.2]}
8... exd5 {[%clk 0:04:44.9]} 9. cxd5 {[%clk 0:04:50.9]} 9... O-O {[%clk
0:04:42.9]} 10. Nd4 {[%clk 0:04:50.1]} 10... Nbd7 {[%clk 0:04:38.8]} 11. Nf5
{[%clk 0:04:47.5]} 11... Ne5 {[%clk 0:04:35.2]} 12. e4 {[%clk 0:04:43.4]} 12...
Bc8 {[%clk 0:04:31.2]} 13. Nd4 {[%clk 0:04:34.8]} 13... Kh7 {[%clk 0:04:16.7]}
14. f4 {[%clk 0:04:31.8]} 14... Bg4 {[%clk 0:04:10.7]} 15. Qc2 {[%clk
0:04:29.5]} 15... g6 {[%clk 0:03:30.5]} 16. fxe5 {[%clk 0:04:26.1]} 16... dxe5
{[%clk 0:03:29.5]} 17. Nc6 {[%clk 0:04:25.8]} 17... Qd6 {[%clk 0:03:26.6]} 18.
Nxe7 {[%clk 0:04:23.2]} 18... Qxe7 {[%clk 0:03:25.1]} 19. Qd2 {[%clk 0:04:22.4]}
19... Rad8 {[%clk 0:03:21.7]} 20. Qxh6+ {[%clk 0:04:20.8]} 20... Kg8 {[%clk
0:03:17.9]} 21. Bg5 {[%clk 0:04:16.1]} 21... Qc5+ {[%clk 0:03:15.1]} 22. Be3
{[%clk 0:04:14.9]} 22... Qe7 {[%clk 0:03:11]} 23. Qh4 {[%clk 0:04:13.8]} 23...
Bc8 {[%clk 0:03:04.5]} 24. Rxf6 {[%clk 0:04:11.3]} 1-0

[Event "Live Chess"]
[Site "Chess.com"]
[Date "2024.06.02"]
[Round "-"]
[White "alicechristina"]
[Black "e4evr"]
[Result "0-1"]
[WhiteElo "1906"]
[BlackElo "2274"]
[TimeControl "300"]
[EndTime "17:31:47 PDT"]
[Termination "e4evr won by resignation"]

1. c4 {[%clk 0:04:49.9]} 1... c5 {[%clk 0:04:58.9]} 2. Nc3 {[%clk 0:04:48.7]}
2... Nc6 {[%clk 0:04:57.8]} 3. e4 {[%clk 0:04:48.2]} 3... g6 {[%clk 0:04:57.3]}
4. g3 {[%clk 0:04:47.2]} 4... Bg7 {[%clk 0:04:56.9]} 5. Bg2 {[%clk 0:04:46.3]}
5... e6 {[%clk 0:04:56.5]} 6. Nge2 {[%clk 0:04:45.6]} 6... Nge7 {[%clk
0:04:56.1]} 7. O-O {[%clk 0:04:45.1]} 7... O-O {[%clk 0:04:55.5]} 8. f4 {[%clk
0:04:44.6]} 8... Nd4 {[%clk 0:04:53.3]} 9. d3 {[%clk 0:04:42.8]} 9... d5 {[%clk
0:04:46.9]} 10. cxd5 {[%clk 0:04:37.4]} 10... exd5 {[%clk 0:04:45.9]} 11. exd5
{[%clk 0:04:36.7]} 11... Bg4 {[%clk 0:04:45.3]} 12. h3 {[%clk 0:04:35]} 12...
Bxe2 {[%clk 0:04:43.1]} 13. Nxe2 {[%clk 0:04:33.6]} 13... Nxd5 {[%clk
0:04:42.5]} 14. g4 {[%clk 0:04:21.4]} 14... Re8 {[%clk 0:04:41.3]} 15. Nxd4
{[%clk 0:04:19.7]} 15... Bxd4+ {[%clk 0:04:39.6]} 16. Kh2 {[%clk 0:04:18.9]}
16... Ne3 {[%clk 0:04:35.7]} 17. Bxe3 {[%clk 0:04:15.8]} 17... Bxe3 {[%clk
0:04:35.6]} 18. f5 {[%clk 0:04:14.6]} 18... Qd6+ {[%clk 0:04:33.4]} 19. Kh1
{[%clk 0:04:12.9]} 19... Rad8 {[%clk 0:04:31.2]} 20. Qf3 {[%clk 0:04:10.7]}
20... g5 {[%clk 0:04:20.5]} 21. Rad1 {[%clk 0:04:02.2]} 21... b6 {[%clk
0:04:15.4]} 22. f6 {[%clk 0:03:55.3]} 22... Bf4 {[%clk 0:04:13.9]} 23. h4 {[%clk
0:03:47.3]} 23... h6 {[%clk 0:04:10.3]} 24. hxg5 {[%clk 0:03:46.3]} 24... hxg5
{[%clk 0:04:09.3]} 25. Qh3 {[%clk 0:03:40.1]} 25... Qxf6 {[%clk 0:04:07.6]} 26.
Be4 {[%clk 0:03:38.7]} 26... Qg7 {[%clk 0:03:58.1]} 27. Bf5 {[%clk 0:03:36]}
27... Rd6 {[%clk 0:03:56.5]} 28. Kg1 {[%clk 0:03:31.2]} 28... Rh6 {[%clk
0:03:53]} 29. Qg2 {[%clk 0:03:29.8]} 29... Be3+ {[%clk 0:03:51.7]} 30. Rf2
{[%clk 0:03:26.9]} 30... Qd4 {[%clk 0:03:51.2]} 31. Rf1 {[%clk 0:03:24]} 31...
Bxf2+ {[%clk 0:03:49.7]} 32. Qxf2 {[%clk 0:03:22.5]} 32... Re2 {[%clk
0:03:44.1]} 33. Qxd4 {[%clk 0:03:19.7]} 33... cxd4 {[%clk 0:03:43.9]} 34. Rf2
{[%clk 0:03:14.9]} 34... Rh1+ {[%clk 0:03:41.9]} 35. Kxh1 {[%clk 0:03:13.8]}
35... Rxf2 {[%clk 0:03:41.2]} 0-1

[Event "Live Chess"]
[Site "Chess.com"]
[Date "2024.06.02"]
[Round "-"]
[White "dmitro74"]
[Black "PughmanChess"]
[Result "1-0"]
[WhiteElo "1697"]
[BlackElo "1382"]
[TimeControl "300"]
[EndTime "17:31:58 PDT"]
[Termination "dmitro74 won by checkmate"]

1. d4 {[%clk 0:04:56.7]} 1... f5 {[%clk 0:04:58.2]} 2. c4 {[%clk 0:04:55.2]}
2... Nf6 {[%clk 0:04:57]} 3. Nc3 {[%clk 0:04:53.8]} 3... e6 {[%clk 0:04:56.2]}
4. Nf3 {[%clk 0:04:52.3]} 4... Be7 {[%clk 0:04:56.1]} 5. e3 {[%clk 0:04:47.8]}
5... O-O {[%clk 0:04:55.9]} 6. b3 {[%clk 0:04:46.5]} 6... d6 {[%clk 0:04:53.3]}
7. Bb2 {[%clk 0:04:45.2]} 7... Ne4 {[%clk 0:04:52]} 8. Nd2 {[%clk 0:04:41.5]}
8... Nxc3 {[%clk 0:04:49.3]} 9. Bxc3 {[%clk 0:04:40]} 9... Bf6 {[%clk
0:04:48.5]} 10. Qc2 {[%clk 0:04:35.9]} 10... Nd7 {[%clk 0:04:37.2]} 11. Bd3
{[%clk 0:04:30.3]} 11... b6 {[%clk 0:04:33.8]} 12. O-O-O {[%clk 0:04:12.6]}
12... a5 {[%clk 0:04:20.6]} 13. e4 {[%clk 0:04:06.3]} 13... f4 {[%clk 0:04:18]}
14. g3 {[%clk 0:04:02.7]} 14... e5 {[%clk 0:04:13.9]} 15. dxe5 {[%clk
0:04:00.5]} 15... Nxe5 {[%clk 0:04:12.2]} 16. gxf4 {[%clk 0:03:54.6]} 16...
Nxd3+ {[%clk 0:04:07.4]} 17. Qxd3 {[%clk 0:03:53.4]} 17... a4 {[%clk 0:04:02.2]}
18. b4 {[%clk 0:03:45.6]} 18... c6 {[%clk 0:03:49.9]} 19. e5 {[%clk 0:03:41]}
19... dxe5 {[%clk 0:03:48.6]} 20. Qxd8 {[%clk 0:03:38.6]} 20... Rxd8 {[%clk
0:03:45.9]} 21. fxe5 {[%clk 0:03:35.4]} 21... Bg5 {[%clk 0:03:42.4]} 22. Kb2
{[%clk 0:03:25.4]} 22... a3+ {[%clk 0:03:38.3]} 23. Kb3 {[%clk 0:03:19.5]} 23...
Rd3 {[%clk 0:03:35.6]} 24. Ne4 {[%clk 0:03:11.7]} 24... Rxd1 {[%clk 0:03:17]}
25. Rxd1 {[%clk 0:03:10.2]} 25... Bh4 {[%clk 0:03:15.4]} 26. f4 {[%clk 0:03:01]}
26... Bf5 {[%clk 0:03:13.3]} 27. Ng5 {[%clk 0:02:51.8]} 27... b5 {[%clk
0:03:11.3]} 28. Rd6 {[%clk 0:02:39.1]} 28... Bd3 {[%clk 0:03:01.9]} 29. Rxd3
{[%clk 0:02:36]} 29... Bxg5 {[%clk 0:02:56.5]} 30. fxg5 {[%clk 0:02:33.8]} 30...
Kf7 {[%clk 0:02:51.7]} 31. Rd6 {[%clk 0:02:29.8]} 31... bxc4+ {[%clk 0:02:50.1]}
32. Kxc4 {[%clk 0:02:28.5]} 32... Rc8 {[%clk 0:02:45.9]} 33. e6+ {[%clk
0:02:25.2]} 33... Ke7 {[%clk 0:02:40.9]} 34. Be5 {[%clk 0:02:17.7]} 34... g6
{[%clk 0:02:37.1]} 35. Kc5 {[%clk 0:02:15.4]} 35... h5 {[%clk 0:02:18.8]} 36.
Bf6+ {[%clk 0:02:12.4]} 36... Ke8 {[%clk 0:02:15.9]} 37. e7 {[%clk 0:02:07.9]}
37... Rc7 {[%clk 0:02:08.5]} 38. Rd8+ {[%clk 0:02:05.1]} 38... Kf7 {[%clk
0:02:06.7]} 39. e8=Q# {[%clk 0:02:03.7]} 1-0

[Event "Live Chess"]
[Site "Chess.com"]
[Date "2024.06.02"]
[Round "-"]
[White "lyricalschemes"]
[Black "wadsy27"]
[Result "0-1"]
[WhiteElo "2263"]
[BlackElo "2586"]
[TimeControl "300"]
[EndTime "17:32:32 PDT"]
[Termination "wadsy27 won by resignation"]

1. e4 {[%clk 0:04:58]} 1... c6 {[%clk 0:04:53.4]} 2. d4 {[%clk 0:04:56.9]} 2...
d5 {[%clk 0:04:52.7]} 3. Nc3 {[%clk 0:04:56.8]} 3... dxe4 {[%clk 0:04:50.7]} 4.
Nxe4 {[%clk 0:04:56.7]} 4... Nf6 {[%clk 0:04:49.7]} 5. Nxf6+ {[%clk 0:04:55.4]}
5... exf6 {[%clk 0:04:49.6]} 6. Nf3 {[%clk 0:04:54]} 6... Bd6 {[%clk 0:04:48.3]}
7. Be2 {[%clk 0:04:53.6]} 7... O-O {[%clk 0:04:47.7]} 8. O-O {[%clk 0:04:53.1]}
8... Bg4 {[%clk 0:04:46.8]} 9. c3 {[%clk 0:04:52.7]} 9... Nd7 {[%clk 0:04:43.7]}
10. Nh4 {[%clk 0:04:49.1]} 10... Bxe2 {[%clk 0:04:40.9]} 11. Qxe2 {[%clk
0:04:48]} 11... Re8 {[%clk 0:04:39.5]} 12. Qf3 {[%clk 0:04:47]} 12... g6 {[%clk
0:04:37.7]} 13. g3 {[%clk 0:04:39.2]} 13... f5 {[%clk 0:04:33.9]} 14. Bd2 {[%clk
0:04:34.7]} 14... Qf6 {[%clk 0:04:14.2]} 15. Rfe1 {[%clk 0:04:32.5]} 15... a5
{[%clk 0:04:10.6]} 16. Ng2 {[%clk 0:04:30.7]} 16... a4 {[%clk 0:04:03.9]} 17.
Bf4 {[%clk 0:04:27.5]} 17... Nb6 {[%clk 0:03:58.7]} 18. Bxd6 {[%clk 0:04:26]}
18... Qxd6 {[%clk 0:03:57.4]} 19. Ne3 {[%clk 0:04:24.2]} 19... Re4 {[%clk
0:03:49]} 20. Nc2 {[%clk 0:04:20.2]} 20... Rae8 {[%clk 0:03:45.8]} 21. Rxe4
{[%clk 0:04:18.8]} 21... fxe4 {[%clk 0:03:45]} 22. Qe2 {[%clk 0:04:15.8]} 22...
Nd5 {[%clk 0:03:31.4]} 23. Qc4 {[%clk 0:04:08.4]} 23... b5 {[%clk 0:03:28.7]}
24. Qe2 {[%clk 0:04:05.6]} 24... h5 {[%clk 0:03:19.6]} 25. h4 {[%clk 0:03:57.9]}
25... e3 {[%clk 0:03:15.6]} 26. f4 {[%clk 0:03:53.6]} 26... a3 {[%clk
0:03:04.9]} 27. Nxa3 {[%clk 0:03:49.2]} 27... Nxc3 {[%clk 0:03:03.5]} 28. Qd3
{[%clk 0:03:42.7]} 28... Nd5 {[%clk 0:02:36.6]} 29. Re1 {[%clk 0:03:39]} 29...
Qe6 {[%clk 0:02:27.4]} 30. Nc2 {[%clk 0:03:34.5]} 30... Qh3 {[%clk 0:02:20.1]}
0-1

[Event "Live Chess"]
[Site "Chess.com"]
[Date "2024.06.02"]
[Round "-"]
[White "oscalik"]
[Black "Queensandpawns"]
[Result "0-1"]
[WhiteElo "2274"]
[BlackElo "2311"]
[TimeControl "300"]
[EndTime "17:33:57 PDT"]
[Termination "Queensandpawns won on time"]

1. e4 {[%clk 0:04:55.1]} 1... c6 {[%clk 0:04:59.9]} 2. d4 {[%clk 0:04:53]} 2...
d5 {[%clk 0:04:59.8]} 3. Nd2 {[%clk 0:04:50.6]} 3... dxe4 {[%clk 0:04:59.2]} 4.
Nxe4 {[%clk 0:04:50]} 4... Nf6 {[%clk 0:04:59.1]} 5. Nxf6+ {[%clk 0:04:48.6]}
5... exf6 {[%clk 0:04:58.5]} 6. c3 {[%clk 0:04:46.9]} 6... Bd6 {[%clk
0:04:58.4]} 7. Bd3 {[%clk 0:04:44.8]} 7... h5 {[%clk 0:04:58.3]} 8. Ne2 {[%clk
0:04:36.7]} 8... h4 {[%clk 0:04:57.7]} 9. h3 {[%clk 0:04:21.2]} 9... Be6 {[%clk
0:04:56.9]} 10. Bf4 {[%clk 0:04:11.9]} 10... Qc7 {[%clk 0:04:56.3]} 11. Qd2
{[%clk 0:04:05.1]} 11... Nd7 {[%clk 0:04:55.7]} 12. Bxd6 {[%clk 0:04:02.6]}
12... Qxd6 {[%clk 0:04:55.6]} 13. Qf4 {[%clk 0:04:01.4]} 13... Qe7 {[%clk
0:04:54.5]} 14. O-O-O {[%clk 0:03:36.6]} 14... O-O-O {[%clk 0:04:53.9]} 15. Kb1
{[%clk 0:03:30.5]} 15... g5 {[%clk 0:04:53.5]} 16. Qh2 {[%clk 0:03:15.7]} 16...
c5 {[%clk 0:04:53.2]} 17. Rhe1 {[%clk 0:03:03]} 17... c4 {[%clk 0:04:51.8]} 18.
Bc2 {[%clk 0:02:47.1]} 18... Nb6 {[%clk 0:04:51.7]} 19. d5 {[%clk 0:02:26.7]}
19... Bxd5 {[%clk 0:04:46.5]} 20. Nd4 {[%clk 0:02:23.5]} 20... Qc7 {[%clk
0:04:45.3]} 21. Bf5+ {[%clk 0:02:13.2]} 21... Kb8 {[%clk 0:04:43.8]} 22. Qxc7+
{[%clk 0:02:08.2]} 22... Kxc7 {[%clk 0:04:43.7]} 23. Re7+ {[%clk 0:01:59.4]}
23... Kb8 {[%clk 0:04:43.2]} 24. f3 {[%clk 0:01:45.4]} 24... Rhe8 {[%clk
0:04:39.4]} 25. Rde1 {[%clk 0:01:44.1]} 25... Rxe7 {[%clk 0:04:38.9]} 26. Rxe7
{[%clk 0:01:42]} 26... Nc8 {[%clk 0:04:38.8]} 27. Bxc8 {[%clk 0:01:34.3]} 27...
Kxc8 {[%clk 0:04:38.7]} 28. Nf5 {[%clk 0:01:21.6]} 28... Be6 {[%clk 0:04:27.2]}
29. Nd4 {[%clk 0:01:12.5]} 29... Rd6 {[%clk 0:04:26.3]} 30. Nb5 {[%clk
0:00:37.6]} 30... Rd7 {[%clk 0:04:05.6]} 31. Re8+ {[%clk 0:00:28.6]} 31... Rd8
{[%clk 0:04:04.7]} 32. Nxa7+ {[%clk 0:00:27.6]} 32... Kc7 {[%clk 0:04:04.4]} 33.
Nb5+ {[%clk 0:00:25.7]} 33... Kd7 {[%clk 0:04:03.9]} 34. Rxd8+ {[%clk
0:00:22.8]} 34... Kxd8 {[%clk 0:04:03.8]} 35. Nd4 {[%clk 0:00:21.6]} 35... Kd7
{[%clk 0:04:03.7]} 36. Kc2 {[%clk 0:00:20.6]} 36... Bd5 {[%clk 0:04:01.3]} 37.
b4 {[%clk 0:00:20.5]} 37... Kd6 {[%clk 0:04:00.5]} 38. a4 {[%clk 0:00:19]} 38...
Ke5 {[%clk 0:04:00.4]} 39. Nb5 {[%clk 0:00:17.6]} 39... Kf4 {[%clk 0:03:59.2]}
40. Nd6 {[%clk 0:00:15.9]} 40... Kg3 {[%clk 0:03:57.9]} 41. b5 {[%clk
0:00:14.5]} 41... Kxg2 {[%clk 0:03:56.8]} 42. a5 {[%clk 0:00:13.1]} 42... Kxh3
{[%clk 0:03:55.7]} 43. a6 {[%clk 0:00:11.7]} 43... bxa6 {[%clk 0:03:55.6]} 44.
bxa6 {[%clk 0:00:10.9]} 44... Kg2 {[%clk 0:03:54.8]} 45. a7 {[%clk 0:00:09.5]}
45... h3 {[%clk 0:03:54.4]} 46. Nxc4 {[%clk 0:00:08.8]} 46... h2 {[%clk
0:03:53.5]} 47. Ne3+ {[%clk 0:00:07.9]} 47... Kf2 {[%clk 0:03:52.3]} 48. Nxd5
{[%clk 0:00:07.6]} 48... h1=Q {[%clk 0:03:48.3]} 49. a8=Q {[%clk 0:00:07.5]}
49... Qxf3 {[%clk 0:03:46.3]} 50. Kb3 {[%clk 0:00:04.9]} 50... Qd1+ {[%clk
0:03:44.8]} 51. Kc4 {[%clk 0:00:03.5]} 51... Qe2+ {[%clk 0:03:43.5]} 52. Kc5
{[%clk 0:00:02.8]} 52... Kg3 {[%clk 0:03:40.8]} 53. Qb8+ {[%clk 0:00:01.2]}
53... Kg4 {[%clk 0:03:39.7]} 54. c4 {[%clk 0:00:00.4]} 54... Qf2+ {[%clk
0:03:39.6]} 0-1

[Event "Live Chess"]
[Site "Chess.com"]
[Date "2024.06.02"]
[Round "-"]
[White "NAZRIZ1977"]
[Black "mychess51"]
[Result "1-0"]
[WhiteElo "2146"]
[BlackElo "1748"]
[TimeControl "300"]
[EndTime "17:33:59 PDT"]
[Termination "NAZRIZ1977 won on time"]

1. d4 {[%clk 0:04:55.7]} 1... d5 {[%clk 0:04:54.1]} 2. Nf3 {[%clk 0:04:54.7]}
2... Bf5 {[%clk 0:04:52.2]} 3. e3 {[%clk 0:04:53]} 3... e6 {[%clk 0:04:51]} 4.
c4 {[%clk 0:04:52.4]} 4... c6 {[%clk 0:04:49.6]} 5. Qb3 {[%clk 0:04:51.7]} 5...
Qb6 {[%clk 0:04:46.3]} 6. c5 {[%clk 0:04:50.8]} 6... Qc7 {[%clk 0:04:42.8]} 7.
Nc3 {[%clk 0:04:47.8]} 7... Nf6 {[%clk 0:04:40]} 8. Be2 {[%clk 0:04:46.4]} 8...
Nbd7 {[%clk 0:04:33.5]} 9. O-O {[%clk 0:04:45.3]} 9... h6 {[%clk 0:04:32.2]} 10.
Bd2 {[%clk 0:04:43.9]} 10... Be7 {[%clk 0:04:30.9]} 11. Qd1 {[%clk 0:04:42.2]}
11... e5 {[%clk 0:04:03.8]} 12. b4 {[%clk 0:04:39.6]} 12... e4 {[%clk
0:03:43.2]} 13. Ne1 {[%clk 0:04:37.9]} 13... Nf8 {[%clk 0:03:29.4]} 14. b5
{[%clk 0:04:35.9]} 14... g5 {[%clk 0:03:19.8]} 15. a4 {[%clk 0:04:32.8]} 15...
h5 {[%clk 0:03:09.8]} 16. a5 {[%clk 0:04:31]} 16... Ng4 {[%clk 0:02:53.8]} 17.
Bxg4 {[%clk 0:04:18.4]} 17... hxg4 {[%clk 0:02:49.3]} 18. g3 {[%clk 0:04:17.3]}
18... Qd7 {[%clk 0:02:31.5]} 19. Kg2 {[%clk 0:04:07.7]} 19... Qe6 {[%clk
0:02:06.9]} 20. Rh1 {[%clk 0:04:03.7]} 20... Rh3 {[%clk 0:02:00.8]} 21. a6
{[%clk 0:04:01.2]} 21... bxa6 {[%clk 0:01:52.8]} 22. Rxa6 {[%clk 0:03:57.6]}
22... Qh6 {[%clk 0:01:41.1]} 23. Rxc6 {[%clk 0:03:52.1]} 23... Ne6 {[%clk
0:01:38.6]} 24. Nxd5 {[%clk 0:03:45.2]} 24... Kd7 {[%clk 0:01:32.8]} 25. Ra6
{[%clk 0:03:31.9]} 25... Rh8 {[%clk 0:01:21]} 26. Rxa7+ {[%clk 0:03:20.3]} 26...
Ke8 {[%clk 0:01:19.8]} 27. Rxe7+ {[%clk 0:03:17.6]} 27... Kf8 {[%clk 0:01:18.9]}
28. Qa4 {[%clk 0:03:09.6]} 28... Rxh2+ {[%clk 0:01:08.2]} 29. Rxh2 {[%clk
0:03:08.8]} 29... Qxh2+ {[%clk 0:01:07.2]} 30. Kf1 {[%clk 0:03:08.1]} 30... Kg7
{[%clk 0:00:44.3]} 31. Qa7 {[%clk 0:02:56.7]} 31... Bg6 {[%clk 0:00:37.2]} 32.
Rxe6 {[%clk 0:02:54.7]} 32... Qh1+ {[%clk 0:00:09.6]} 33. Ke2 {[%clk 0:02:53.4]}
1-0